fUSD/lending_fUSD_20240424
["ID","MTS","AMOUNT","RATE_DAILY","PERIOD"]
[323401553,1713971451126,-500.0,0.00011232,2]
[323401554,1713971451136,-500.0,0.00011232,2]
[323401555,1713971451146,-500.0,0.00011232,2]
[323401556,1713971451156,-500.0,0.00011232,2]
[323401557,1713971451166,-500.0,0.00011232,2]
[323401558,1713971451175,-554.16,0.00011232,2]
[323401559,1713971451187,-591.5,0.00011232,2]
[323401560,1713971451197,-500.0,0.00011232,2]
[323401561,1713971451208,-500.0,0.00011232,2]
[323401562,1713971451218,-500.0,0.00011232,2]
[323401563,1713971451227,-500.0,0.00011232,2]
[323401564,1713971451236,-500.0,0.00011232,2]
[323401565,1713971451246,-500.0,0.00011232,2]
[323401566,1713971451256,-571.87,0.00011232,2]
[323401567,1713971451266,-757.62,0.00011232,2]
[323401568,1713971451275,-500.0,0.00011232,2]
[323401569,1713971451285,-1868.55,0.00011232,2]
[323401570,1713971451295,-500.0,0.00011232,2]
[323401571,1713971451304,-416.60377447,0.00011232,2]
[323401572,1713971451315,-500.0,0.00011232,2]
[323401573,1713971451327,-500.0,0.00011232,2]
[323401574,1713971451337,-3047.41,0.00011232,2]
[323401575,1713971451347,-500.0,0.00011232,2]
[323401576,1713971451357,-960.72,0.00011232,2]
[323401577,1713971451368,-500.0,0.00011232,2]
[323401578,1713971451379,-500.0,0.00011232,2]
[323401579,1713971451389,-500.0,0.00011232,2]
[323401580,1713971451399,-738.26,0.00011232,2]
[323401581,1713971451411,-500.0,0.00011232,2]
[323401582,1713971451421,-500.0,0.00011232,2]
[323401583,1713971451432,-500.0,0.00011232,2]
[323401584,1713971451442,-632.55,0.00011232,2]
[323401585,1713971451452,-500.0,0.00011232,2]
[323401586,1713971451463,-500.0,0.00011232,2]
[323401587,1713971451472,-196.27134121,0.00011232,2]
[323401588,1713971451482,-500.0,0.00011232,2]
[323401589,1713971451492,-500.0,0.00011232,2]
[323401590,1713971451503,-500.0,0.00011232,2]
[323401591,1713971451514,-500.0,0.00011232,2]
[323401592,1713971451524,-500.0,0.00011232,2]
[323401593,1713971451534,-500.0,0.00011232,2]
[323401594,1713971451543,-500.0,0.00011232,2]
[323401595,1713971451553,-500.0,0.00011232,2]
[323401596,1713971451563,-500.0,0.00011232,2]
[323401597,1713971451572,-500.0,0.00011232,2]
[323401598,1713971451582,-500.0,0.00011232,2]
[323401599,1713971451593,-1231.81,0.00011232,2]
[323401600,1713971451602,-500.0,0.00011232,2]
[323401601,1713971451612,-500.0,0.00011232,2]
[323401602,1713971451621,-561.66485446,0.00011232,2]
[323401603,1713971451631,-4414.65,0.00011232,2]
[323401604,1713971451640,-500.0,0.00011232,2]
[323401605,1713971451650,-500.0,0.00011232,2]
[323401606,1713971451659,-500.0,0.00011232,2]
[323401607,1713971451669,-500.0,0.00011232,2]
[323401608,1713971451678,-500.0,0.00011232,2]
[323401609,1713971451688,-500.0,0.00011232,2]
[323401610,1713971451697,-500.0,0.00011232,2]
[323401611,1713971451706,-1512.32,0.00011232,2]
[323401612,1713971451715,-508.09391005,0.00011232,2]
[323401613,1713971451724,-500.0,0.00011232,2]
[323401614,1713971451733,-500.0,0.00011232,2]
[323401615,1713971451743,-500.0,0.00011232,2]
[323401616,1713971451752,-500.0,0.00011232,2]
[323401617,1713971451762,-500.0,0.00011232,2]
[323401618,1713971451771,-500.0,0.00011232,2]
[323401619,1713971451781,-500.0,0.00011232,2]
[323401620,1713971451790,-500.0,0.00011232,2]
[323401621,1713971451800,-613.68,0.00011232,2]
[323401622,1713971451809,-500.0,0.00011232,2]
[323401623,1713971451818,-500.0,0.00011232,2]
[323401624,1713971451829,-500.0,0.00011232,2]
[323401625,1713971451838,-500.0,0.00011232,2]
[323401626,1713971451849,-1160.08,0.00011232,2]
[323401627,1713971451858,-531.53184748,0.00011232,2]
[323401628,1713971451869,-500.0,0.00011232,2]
[323401629,1713971451879,-500.0,0.00011232,2]
[323401630,1713971451890,-500.0,0.00011232,2]
[323401631,1713971451899,-500.0,0.00011232,2]
[323401632,1713971451909,-1014.83,0.00011232,2]
[323401633,1713971451918,-500.0,0.00011232,2]
[323401634,1713971451929,-500.0,0.00011232,2]
[323401635,1713971451938,-500.0,0.00011232,2]
[323401636,1713971451949,-533.24,0.00011232,2]
[323401637,1713971451959,-500.0,0.00011232,2]
[323401638,1713971451969,-500.0,0.00011232,2]
[323401639,1713971451979,-500.0,0.00011232,2]
[323401640,1713971451989,-500.0,0.00011232,2]
[323401641,1713971451999,-500.0,0.00011232,2]
[323401642,1713971452011,-500.0,0.00011232,2]
[323401643,1713971452021,-500.0,0.00011232,2]
[323401644,1713971452031,-500.0,0.00011232,2]
[323401645,1713971452041,-500.0,0.00011232,2]
[323401646,1713971452052,-500.0,0.00011232,2]
[323401647,1713971452061,-207.6,0.00011232,2]
[323401648,1713971452071,-554.94,0.00011232,2]
[323401649,1713971452082,-500.0,0.00011232,2]
[323401650,1713971452093,-981.42,0.00011232,2]
[323401651,1713971452103,-1266.64,0.00011232,2]
[323401652,1713971452114,-500.0,0.00011232,2]
[323401653,1713971452124,-500.0,0.00011232,2]
[323401654,1713971452134,-500.0,0.00011232,2]
[323401655,1713971452143,-500.0,0.00011232,2]
[323401656,1713971452154,-2618.92,0.00011232,2]
[323401657,1713971452163,-500.0,0.00011232,2]
[323401658,1713971452175,-500.0,0.00011232,2]
[323401659,1713971452185,-500.0,0.00011232,2]
[323401660,1713971452195,-500.0,0.00011232,2]
[323401661,1713971452206,-834.92,0.00011232,2]
[323401662,1713971452216,-500.0,0.00011232,2]
[323401663,1713971452226,-928.86,0.00011232,2]
[323401664,1713971452236,-500.0,0.00011232,2]
[323401665,1713971452246,-500.0,0.00011232,2]
[323401666,1713971452257,-500.0,0.00011232,2]
[323401667,1713971452267,-500.0,0.00011232,2]
[323401668,1713971452277,-2388.92,0.00011232,2]
[323401669,1713971452288,-500.0,0.00011232,2]
[323401670,1713971452299,-500.0,0.00011232,2]
[323401671,1713971452309,-500.0,0.00011232,2]
[323401672,1713971452321,-500.0,0.00011232,2]
[323401673,1713971452331,-518.15647858,0.00011232,2]
[323401674,1713971452342,-501.95960827,0.00011232,2]
[323401675,1713971452352,-500.0,0.00011232,2]
[323401676,1713971452362,-500.0,0.00011232,2]
[323401677,1713971452372,-500.0,0.00011232,2]
[323401678,1713971452382,-500.0,0.00011232,2]
[323401679,1713971452393,-500.0,0.00011232,2]
[323401680,1713971452403,-161.90466835,0.00011232,2]
[323401681,1713971452414,-500.0,0.00011232,2]
[323401682,1713971452425,-500.0,0.00011232,2]
[323401683,1713971452435,-500.0,0.00011232,2]
[323401684,1713971452446,-500.0,0.00011232,2]
[323401685,1713971452456,-500.0,0.00011232,2]
[323401686,1713971452466,-500.0,0.00011232,2]
[323401687,1713971452476,-500.0,0.00011232,2]
[323401688,1713971452488,-500.0,0.00011232,2]
[323401689,1713971452498,-583.43,0.00011232,2]
[323401690,1713971452508,-500.0,0.00011232,2]
[323401691,1713971452519,-500.0,0.00011232,2]
[323401692,1713971452528,-500.0,0.00011232,2]
[323401693,1713971452538,-1814.7,0.00011232,2]
[323401694,1713971452548,-500.0,0.00011232,2]
[323401695,1713971452558,-500.0,0.00011232,2]
[323401696,1713971452567,-4566.79,0.00011232,2]
[323401697,1713971452578,-500.0,0.00011232,2]
[323401698,1713971452587,-500.0,0.00011232,2]
[323401699,1713971452598,-500.0,0.00011232,2]
[323401700,1713971452608,-500.0,0.00011232,2]
[323401701,1713971452618,-500.0,0.00011232,2]
[323401702,1713971452628,-500.0,0.00011232,2]
[323401703,1713971452637,-500.0,0.00011232,2]
[323401704,1713971452647,-500.0,0.00011232,2]
[323401705,1713971452657,-500.0,0.00011232,2]
[323401706,1713971452668,-500.0,0.00011232,2]
[323401707,1713971452678,-500.0,0.00011232,2]
[323401708,1713971452688,-500.0,0.00011232,2]
[323401709,1713971452697,-500.0,0.00011232,2]
[323401710,1713971452706,-500.0,0.00011232,2]
[323401711,1713971452716,-502.13260334,0.00011232,2]
[323401712,1713971452725,-500.0,0.00011232,2]
[323401713,1713971452734,-635.7256997,0.00011232,2]
[323401714,1713971452744,-500.0,0.00011232,2]
[323401715,1713971452754,-500.0,0.00011232,2]
[323401716,1713971452769,-500.0,0.00011232,2]
[323401717,1713971452779,-1008.59,0.00011232,2]
[323401718,1713971452789,-500.0,0.00011232,2]
[323401719,1713971452799,-500.0,0.00011232,2]
[323401720,1713971452809,-657.96,0.00011232,2]
[323401721,1713971452819,-500.0,0.00011232,2]
[323401722,1713971452829,-500.0,0.00011232,2]
[323401723,1713971452839,-500.0,0.00011232,2]
[323401724,1713971452849,-500.0,0.00011232,2]
[323401725,1713971452858,-500.0,0.00011232,2]
[323401726,1713971452868,-500.0,0.00011232,2]
[323401727,1713971452878,-500.0,0.00011232,2]
[323401728,1713971452888,-1435.34,0.00011232,2]
[323401729,1713971452898,-500.0,0.00011232,2]
[323401730,1713971452909,-2224.61,0.00011232,2]
[323401731,1713971452919,-500.0,0.00011232,2]
[323401732,1713971452928,-500.0,0.00011232,2]
[323401733,1713971452938,-4364.47,0.00011232,2]
[323401734,1713971452948,-500.0,0.00011232,2]
[323401735,1713971452958,-178.74196391,0.00011232,2]
[323401736,1713971452968,-500.0,0.00011232,2]
[323401737,1713971452977,-591.78693738,0.00011232,2]
[323401738,1713971452988,-500.0,0.00011232,2]
[323401739,1713971452998,-500.0,0.00011232,2]
[323401740,1713971453011,-500.0,0.00011232,2]
[323401741,1713971453022,-500.0,0.00011232,2]
[323401742,1713971453033,-500.0,0.00011232,2]
[323401743,1713971453044,-620.67,0.00011232,2]
[323401744,1713971453054,-500.0,0.00011232,2]
[323401745,1713971453064,-500.0,0.00011232,2]
[323401746,1713971453075,-1798.89,0.00011232,2]
[323401747,1713971453086,-500.0,0.00011232,2]
[323401748,1713971453096,-500.0,0.00011232,2]
[323401749,1713971453107,-500.0,0.00011232,2]
[323401750,1713971453117,-753.37,0.00011232,2]
[323401751,1713971453127,-500.0,0.00011232,2]
[323401752,1713971453137,-500.0,0.00011232,2]
[323401753,1713971453147,-500.0,0.00011232,2]
[323401754,1713971453157,-500.0,0.00011232,2]
[323401755,1713971453167,-500.0,0.00011232,2]
[323401756,1713971453177,-500.0,0.00011232,2]
[323401757,1713971453187,-500.0,0.00011232,2]
[323401758,1713971453197,-500.0,0.00011232,2]
[323401759,1713971453207,-500.0,0.00011232,2]
[323401760,1713971453217,-500.0,0.00011232,2]
[323401761,1713971453226,-500.0,0.00011232,2]
[323401762,1713971453236,-1172.56,0.00011232,2]
[323401763,1713971453246,-500.0,0.00011232,2]
[323401764,1713971453255,-500.0,0.00011232,2]
[323401765,1713971453271,-500.0,0.00011232,2]
[323401766,1713971453281,-500.0,0.00011232,2]
[323401767,1713971453290,-500.0,0.00011232,2]
[323401768,1713971453300,-500.0,0.00011232,2]
[323401769,1713971453310,-500.0,0.00011232,2]
[323401770,1713971453320,-500.0,0.00011232,2]
[323401771,1713971453331,-500.0,0.00011232,2]
[323401772,1713971453341,-500.0,0.00011232,2]
[323401773,1713971453351,-500.0,0.00011232,2]
[323401774,1713971453362,-500.0,0.00011232,2]
[323401775,1713971453372,-1549.65,0.00011232,2]
[323401776,1713971453381,-4633.7,0.00011232,2]
[323401777,1713971453391,-500.0,0.00011232,2]
[323401778,1713971453402,-500.0,0.00011232,2]
[323401779,1713971453413,-2231.62,0.00011232,2]
[323401780,1713971453423,-500.0,0.00011232,2]
[323401781,1713971453432,-500.0,0.00011232,2]
[323401782,1713971453442,-500.0,0.00011232,2]
[323401783,1713971453451,-500.0,0.00011232,2]
[323401784,1713971453462,-500.0,0.00011232,2]
[323401785,1713971453471,-500.0,0.00011232,2]
[323401786,1713971453481,-640.91,0.00011232,2]
[323401787,1713971453491,-500.0,0.00011232,2]
[323401788,1713971453501,-569.69,0.00011232,2]
[323401789,1713971453513,-500.0,0.00011232,2]
[323401790,1713971453523,-3857.51,0.00011232,2]
[323401791,1713971453533,-500.0,0.00011232,2]
[323401792,1713971453543,-500.0,0.00011232,2]
[323401793,1713971453553,-500.0,0.00011232,2]
[323401794,1713971453563,-3186.18,0.00011232,2]
[323401795,1713971453573,-500.0,0.00011232,2]
[323401796,1713971453583,-500.0,0.00011232,2]
[323401797,1713971453593,-500.0,0.00011232,2]
[323401798,1713971453603,-500.0,0.00011232,2]
[323401799,1713971453612,-880.86,0.00011232,2]
[323401800,1713971453622,-1023.52,0.00011232,2]
[323401801,1713971453632,-500.0,0.00011232,2]
[323401802,1713971453643,-1038.57,0.00011232,2]
[323401803,1713971453653,-500.0,0.00011232,2]
[323401804,1713971453664,-500.0,0.00011232,2]
[323401805,1713971453673,-1051.25,0.00011232,2]
[323401806,1713971453684,-500.0,0.00011232,2]
[323401807,1713971453694,-500.0,0.00011232,2]
[323401808,1713971453704,-500.0,0.00011232,2]
[323401809,1713971453714,-500.0,0.00011232,2]
[323401810,1713971453724,-4170.17,0.00011232,2]
[323401811,1713971453733,-500.0,0.00011232,2]
[323401812,1713971453743,-500.0,0.00011232,2]
[323401813,1713971453753,-712.12,0.00011232,2]
[323401814,1713971453765,-500.0,0.00011232,2]
[323401815,1713971453775,-811.13,0.00011232,2]
[323401816,1713971453786,-500.0,0.00011232,2]
[323401817,1713971453796,-500.0,0.00011232,2]
[323401818,1713971453805,-1516.0,0.00011232,2]
[323401819,1713971453815,-500.0,0.00011232,2]
[323401820,1713971453824,-500.0,0.00011232,2]
[323401821,1713971453834,-500.0,0.00011232,2]
[323401822,1713971453845,-500.0,0.00011232,2]
[323401823,1713971453854,-500.0,0.00011232,2]
[323401824,1713971453863,-500.0,0.00011232,2]
[323401825,1713971453873,-500.0,0.00011232,2]
[323401826,1713971453883,-500.0,0.00011232,2]
[323401827,1713971453893,-500.0,0.00011232,2]
[323401828,1713971453903,-500.0,0.00011232,2]
[323401829,1713971453913,-500.0,0.00011232,2]
[323401830,1713971453922,-318.54886816,0.00011232,2]
[323401831,1713971453932,-2572.9,0.00011232,2]
[323401832,1713971453942,-500.0,0.00011232,2]
[323401833,1713971453952,-500.0,0.00011232,2]
[323401834,1713971453962,-500.0,0.00011232,2]
[323401835,1713971453972,-500.0,0.00011232,2]
[323401836,1713971453981,-500.0,0.00011232,2]
[323401837,1713971453991,-500.0,0.00011232,2]
[323401838,1713971454001,-500.0,0.00011232,2]
[323401839,1713971454013,-1704.77,0.00011232,2]
[323401840,1713971454023,-504.43038363,0.00011232,2]
[323401841,1713971454033,-500.0,0.00011232,2]
[323401842,1713971454043,-2085.19,0.00011232,2]
[323401843,1713971454053,-500.0,0.00011232,2]
[323401844,1713971454063,-500.0,0.00011232,2]
[323401845,1713971454073,-688.21,0.00011232,2]
[323401846,1713971454084,-500.0,0.00011232,2]
[323401847,1713971454093,-1611.38,0.00011232,2]
[323401848,1713971454103,-500.0,0.00011232,2]
[323401849,1713971454405,-500.0,0.00011232,2]
[323401850,1713971454417,-1822.99,0.00011232,2]
[323401851,1713971454428,-185.58,0.00011232,2]
[323401852,1713971454437,-500.0,0.00011232,2]
[323401853,1713971454446,-500.0,0.00011232,2]
[323401854,1713971454456,-500.0,0.00011232,2]
[323401855,1713971454465,-4346.21,0.00011232,2]
[323401856,1713971454474,-4561.56,0.00011232,2]
[323401857,1713971454485,-500.0,0.00011232,2]
[323401858,1713971454495,-1172.2,0.00011232,2]
[323401859,1713971454504,-11758.78,0.00011232,2]
[323401860,1713971454516,-500.0,0.00011232,2]
[323401861,1713971454525,-877.15,0.00011232,2]
[323401862,1713971454535,-500.0,0.00011232,2]
[323401863,1713971454544,-3844.95,0.00011232,2]
[323401864,1713971454554,-500.0,0.00011232,2]
[323401865,1713971454563,-1396.93,0.00011232,2]
[323401866,1713971454573,-500.0,0.00011232,2]
[323401867,1713971454583,-500.0,0.00011232,2]
[323401868,1713971454593,-500.0,0.00011232,2]
[323401869,1713971454602,-24057.34,0.00011232,2]
[323401870,1713971454612,-500.0,0.00011232,2]
[323401871,1713971454622,-500.0,0.00011232,2]
[323401872,1713971454631,-500.0,0.00011232,2]
[323401873,1713971454641,-500.0,0.00011232,2]
[323401874,1713971454650,-570.53,0.00011232,2]
[323401875,1713971454659,-500.0,0.00011232,2]
[323401876,1713971454669,-946.89,0.00011232,2]
[323401877,1713971454679,-500.0,0.00011232,2]
[323401878,1713971454688,-500.0,0.00011232,2]
[323401879,1713971454697,-500.0,0.00011232,2]
[323401880,1713971454707,-22807.46,0.00011232,2]
[323401881,1713971454717,-500.0,0.00011232,2]
[323401882,1713971454726,-500.0,0.00011232,2]
[323401883,1713971454735,-20856.91,0.00011232,2]
[323401884,1713971454745,-7901.37,0.00011232,2]
[323401885,1713971454755,-5859.12,0.00011232,2]
[323401886,1713971454766,-3371.32,0.00011232,2]
[323401887,1713971454775,-500.0,0.00011232,2]
[323401888,1713971454785,-500.0,0.00011232,2]
[323401889,1713971454795,-500.0,0.00011232,2]
[323401890,1713971454804,-8235.63,0.00011232,2]
[323401891,1713971454814,-2169.73,0.00011232,2]
[323401892,1713971454823,-1402.36,0.00011232,2]
[323401893,1713971454833,-500.0,0.00011232,2]
[323401894,1713971454843,-1022.8,0.00011232,2]
[323401895,1713971454853,-500.0,0.00011232,2]
[323401896,1713971454862,-500.0,0.00011232,2]
[323401897,1713971454871,-500.0,0.00011232,2]
[323401898,1713971454881,-3366.61,0.00011232,2]
[323401899,1713971454891,-500.0,0.00011232,2]
[323401900,1713971454900,-500.0,0.00011232,2]
[323401901,1713971454909,-11271.93,0.00011232,2]
[323401902,1713971454919,-500.0,0.00011232,2]
[323401903,1713971454928,-500.0,0.00011232,2]
[323401904,1713971454937,-500.0,0.00011232,2]
[323401905,1713971454947,-3149.99,0.00011232,2]
[323401906,1713971454956,-700.26,0.00011232,2]
[323401907,1713971454966,-500.0,0.00011232,2]
[323401908,1713971454975,-399.55292212,0.00011232,2]
[323401909,1713971454985,-500.0,0.00011232,2]
[323401910,1713971454994,-1077.52,0.00011232,2]
[323401911,1713971455003,-500.0,0.00011232,2]
[323401912,1713971455014,-500.0,0.00011232,2]
[323401913,1713971455024,-500.0,0.00011232,2]
[323401914,1713971455034,-500.0,0.00011232,2]
[323401915,1713971455043,-500.0,0.00011232,2]
[323401916,1713971455052,-13896.41,0.00011232,2]
[323401917,1713971455061,-500.0,0.00011232,2]
[323401918,1713971455071,-2645.0,0.00011232,2]
[323401919,1713971455080,-500.0,0.00011232,2]
[323401920,1713971455089,-500.0,0.00011232,2]
[323401921,1713971455098,-500.0,0.00011232,2]
[323401922,1713971455108,-500.0,0.00011232,2]
[323401923,1713971455118,-500.0,0.00011232,2]
[323401924,1713971455127,-500.0,0.00011232,2]
[323401925,1713971455137,-500.0,0.00011232,2]
[323401926,1713971455146,-794.05,0.00011232,2]
[323401927,1713971455156,-417.27106294,0.00011232,2]
[323401928,1713971455165,-500.0,0.00011232,2]
[323401929,1713971455175,-500.0,0.00011232,2]
[323401930,1713971455184,-500.0,0.00011232,2]
[323401931,1713971455194,-391.96993915,0.00011232,2]
[323401932,1713971455203,-5136.7,0.00011232,2]
[323401933,1713971455212,-500.0,0.00011232,2]
[323401934,1713971455222,-2121.92,0.00011232,2]
[323401935,1713971455231,-500.0,0.00011232,2]
[323401936,1713971455241,-500.0,0.00011232,2]
[323401937,1713971455250,-500.0,0.00011232,2]
[323401938,1713971455261,-500.0,0.00011232,2]
[323401939,1713971455271,-1006.55,0.00011232,2]
[323401940,1713971455281,-500.0,0.00011232,2]
[323401941,1713971455291,-500.0,0.00011232,2]
[323401942,1713971455300,-500.0,0.00011232,2]
[323401943,1713971455312,-500.0,0.00011232,2]
[323401944,1713971455331,-500.0,0.00011232,2]
[323401945,1713971455352,-500.0,0.00011232,2]
[323401946,1713971455377,-500.0,0.00011232,2]
[323401947,1713971455419,-500.0,0.00011232,2]
[323401948,1713971455464,-500.0,0.00011232,2]
[323401949,1713971455505,-500.0,0.00011232,2]
[323401950,1713971455519,-555.9,0.00011232,2]
[323401951,1713971455529,-500.0,0.00011232,2]
[323401952,1713971455539,-3852.42,0.00011232,2]
[323401953,1713971455549,-1567.09,0.00011232,2]
[323401954,1713971455559,-500.0,0.00011232,2]
[323401955,1713971455568,-500.0,0.00011232,2]
[323401956,1713971455578,-2728.08,0.00011232,2]
[323401957,1713971455588,-500.0,0.00011232,2]
[323401958,1713971455598,-1445.4,0.00011232,2]
[323401959,1713971455607,-1239.48,0.00011232,2]
[323401960,1713971455617,-500.0,0.00011232,2]
[323401961,1713971455626,-500.0,0.00011232,2]
[323401962,1713971455635,-4557.06,0.00011232,2]
[323401963,1713971455644,-500.0,0.00011232,2]
[323401964,1713971455654,-500.0,0.00011232,2]
[323401965,1713971455664,-500.0,0.00011232,2]
[323401966,1713971455673,-3462.5,0.00011232,2]
[323401967,1713971455683,-1371.31,0.00011232,2]
[323401968,1713971455692,-1128.75,0.00011232,2]
[323401969,1713971455702,-511.34566693,0.00011232,2]
[323401970,1713971455711,-609.28124409,0.00011232,2]
[323401971,1713971455721,-4574.78,0.00011232,2]
[323401972,1713971455730,-4632.78,0.00011232,2]
[323401973,1713971455739,-500.0,0.00011232,2]
[323401974,1713971455749,-500.0,0.00011232,2]
[323401975,1713971455758,-500.0,0.00011232,2]
[323401976,1713971455774,-4829.3,0.00011232,2]
[323401977,1713971455783,-9101.65,0.00011232,2]
[323401978,1713971455793,-500.0,0.00011232,2]
[323401979,1713971455803,-6293.29,0.00011232,2]
[323401980,1713971455813,-500.0,0.00011232,2]
[323401981,1713971455822,-500.0,0.00011232,2]
[323401982,1713971455832,-500.0,0.00011232,2]
[323401983,1713971455841,-12365.63,0.00011232,2]
[323401984,1713971455851,-500.0,0.00011232,2]
[323401985,1713971455861,-500.0,0.00011232,2]
[323401986,1713971455871,-500.0,0.00011232,2]
[323401987,1713971455880,-563.98687037,0.00011232,2]
[323401988,1713971455890,-500.0,0.00011232,2]
[323401989,1713971455900,-4021.46,0.00011232,2]
[323401990,1713971455909,-5842.31,0.00011232,2]
[323401991,1713971455919,-500.0,0.00011232,2]
[323401992,1713971455930,-500.0,0.00011232,2]
[323401993,1713971455940,-2123.91,0.00011232,2]
[323401994,1713971455950,-500.0,0.00011232,2]
[323401995,1713971455960,-500.0,0.00011232,2]
[323401996,1713971455969,-500.0,0.00011232,2]
[323401997,1713971455980,-500.0,0.00011232,2]
[323401998,1713971455990,-500.0,0.00011232,2]
[323401999,1713971456000,-2828.68,0.00011232,2]
[323402000,1713971456013,-6412.45,0.00011232,2]
[323402001,1713971456023,-683.35,0.00011232,2]
[323402002,1713971456033,-4064.0,0.00011232,2]
[323402003,1713971456043,-500.0,0.00011232,2]
[323402004,1713971456052,-500.0,0.00011232,2]
[323402005,1713971456061,-500.0,0.00011232,2]
[323402006,1713971456071,-5147.12,0.00011232,2]
[323402007,1713971456080,-545.57072544,0.00011232,2]
[323402008,1713971456090,-10655.34,0.00011232,2]
[323402009,1713971456100,-500.0,0.00011232,2]
[323402010,1713971456109,-500.0,0.00011232,2]
[323402011,1713971456119,-3542.31,0.00011232,2]
[323402012,1713971456129,-500.0,0.00011232,2]
[323402013,1713971456138,-500.0,0.00011232,2]
[323402014,1713971456147,-500.0,0.00011232,2]
[323402015,1713971456156,-500.0,0.00011232,2]
[323402016,1713971456166,-500.0,0.00011232,2]
[323402017,1713971456175,-500.0,0.00011232,2]
[323402018,1713971456184,-5581.45,0.00011232,2]
[323402019,1713971456194,-500.0,0.00011232,2]
[323402020,1713971456205,-500.0,0.00011232,2]
[323402021,1713971456214,-500.0,0.00011232,2]
[323402022,1713971456224,-2316.41,0.00011232,2]
[323402023,1713971456233,-500.0,0.00011232,2]
[323402024,1713971456243,-19318.67,0.00011232,2]
[323402025,1713971456252,-941.61,0.00011232,2]
[323402026,1713971456266,-3933.71,0.00011232,2]
[323402027,1713971456276,-500.0,0.00011232,2]
[323402028,1713971456285,-2747.31,0.00011232,2]
[323402029,1713971456295,-500.0,0.00011232,2]
[323402030,1713971456305,-1364.05,0.00011232,2]
[323402031,1713971456318,-345.53567002,0.00011232,2]
[323402032,1713971456328,-500.0,0.00011232,2]
[323402033,1713971456338,-2109.48,0.00011232,2]
[323402034,1713971456348,-1069.73,0.00011232,2]
[323402035,1713971456358,-500.0,0.00011232,2]
[323402036,1713971456368,-500.0,0.00011232,2]
[323402037,1713971456377,-500.0,0.00011232,2]
[323402038,1713971456386,-500.0,0.00011232,2]
[323402039,1713971456397,-500.0,0.00011232,2]
[323402040,1713971456407,-500.0,0.00011232,2]
[323402041,1713971456417,-6056.82,0.00011232,2]
[323402042,1713971456427,-5584.64,0.00011232,2]
[323402043,1713971456437,-1076.15,0.00011232,2]
[323402044,1713971456447,-500.0,0.00011232,2]
[323402045,1713971456456,-11108.74,0.00011232,2]
[323402046,1713971456465,-500.0,0.00011232,2]
[323402047,1713971456475,-9374.05,0.00011232,2]
[323402048,1713971456485,-500.0,0.00011232,2]
[323402049,1713971456495,-233.01293189,0.00011232,2]
[323402050,1713971456504,-2897.45,0.00011232,2]
[323402051,1713971456517,-4688.69,0.00011232,2]
[323402052,1713971456527,-500.0,0.00011232,2]